bitfinex-derivatives/quotes_BTCF0:USTF0_20250830
["timestamp","ask_amount","ask_price","bid_price","bid_amount"]
[1756584107079,0.50592996,108880.0,108870.0,1.5021781]
[1756584108792,0.06081,108870.0,108860.0,0.95788122]
[1756584108993,0.39392996,108870.0,108860.0,2.09896122]
[1756584109788,0.39392996,108870.0,108860.0,0.64058122]
[1756584109988,0.44355316,108870.0,108860.0,1.21170122]
[1756584112994,0.13329506,108870.0,108860.0,1.21170122]
[1756584113201,0.44355316,108870.0,108860.0,1.21170122]
[1756584114392,0.44355316,108870.0,108860.0,0.38058122]
[1756584114802,0.44355316,108870.0,108860.0,1.21202122]
[1756584117601,0.39392996,108870.0,108860.0,1.21202122]
[1756584118099,0.39392996,108870.0,108860.0,1.1916981]
[1756584118303,0.08367186,108870.0,108860.0,1.21178043]
[1756584118504,0.39392996,108870.0,108860.0,1.21178043]
[1756584120307,0.44355316,108870.0,108860.0,1.21178043]
[1756584120607,0.13329506,108870.0,108860.0,1.21178043]
[1756584120798,0.44355316,108870.0,108860.0,1.21178043]
[1756584123702,0.44355316,108870.0,108860.0,0.90152233]
[1756584123903,0.44355316,108870.0,108860.0,1.21178043]
[1756584124305,0.13329506,108870.0,108860.0,1.21178043]
[1756584124505,0.44355316,108870.0,108860.0,1.21178043]
[1756584129611,0.13329506,108870.0,108860.0,1.21178043]
[1756584129813,0.44355316,108870.0,108860.0,1.21178043]
[1756584131112,0.44355316,108870.0,108860.0,0.38034043]
[1756584131413,0.44355316,108870.0,108860.0,1.21182043]
[1756584131714,0.44355316,108870.0,108860.0,0.38034043]
[1756584131915,0.44355316,108870.0,108860.0,1.21178043]
[1756584133210,0.44355316,108870.0,108860.0,0.8316]
[1756584136713,0.03439,108860.0,108850.0,2.4176181]
[1756584136912,0.36750996,108860.0,108850.0,3.5892181]
[1756584138112,0.36750996,108860.0,108850.0,2.7586181]
[1756584138313,0.36750996,108860.0,108850.0,3.5901381]
[1756584138514,0.36750996,108860.0,108850.0,3.5911381]
[1756584139713,0.33311996,108860.0,108850.0,3.5911381]
[1756584141415,0.36750996,108860.0,108850.0,1.8446181]
[1756584144319,0.33311996,108860.0,108850.0,1.8446181]
[1756584145918,0.36750996,108860.0,108850.0,1.8446181]
[1756584149024,0.41713316,108860.0,108850.0,1.8446181]
[1756584149621,0.36750996,108860.0,108850.0,1.8446181]
[1756584154429,0.05725186,108860.0,108850.0,1.8446181]
[1756584154629,0.36750996,108860.0,108850.0,1.8446181]
[1756584156427,0.05725186,108860.0,108850.0,1.8446181]
[1756584156628,0.02286186,108860.0,108850.0,1.8446181]
[1756584156829,0.02286186,108860.0,108850.0,1.53436]
[1756584157132,0.02286186,108860.0,108850.0,1.8446181]
[1756584157527,0.02286186,108860.0,108850.0,1.53436]
[1756584157728,0.02286186,108860.0,108850.0,1.8446181]
[1756584158826,0.33311996,108860.0,108850.0,1.8446181]
[1756584159032,0.33311996,108860.0,108850.0,1.53436]
[1756584159331,0.33311996,108860.0,108850.0,1.8446181]
[1756584160528,0.36864996,108860.0,108850.0,1.8446181]
[1756584163225,0.41827316,108860.0,108850.0,1.8446181]
[1756584165031,0.38274316,108860.0,108850.0,1.8446181]
[1756584168038,0.07248506,108860.0,108850.0,1.8446181]
[1756584168236,0.38274316,108860.0,108850.0,1.8446181]
[1756584170835,0.38274316,108860.0,108850.0,1.4838181]
[1756584171036,0.38274316,108860.0,108850.0,1.8446181]
[1756584171841,0.38276716,108860.0,108850.0,1.8446181]
[1756584175844,0.38276716,108860.0,108850.0,1.4838181]
[1756584176043,0.38276716,108860.0,108850.0,1.8446181]
[1756584177642,0.38276716,108860.0,108850.0,1.53436]
[1756584177839,0.38276716,108860.0,108850.0,1.8446181]
[1756584179544,0.38279987,108860.0,108850.0,1.8446181]
[1756584180242,0.38279987,108860.0,108850.0,1.0130981]
[1756584180438,0.36870667,108860.0,108850.0,1.8442981]
[1756584182241,0.36870667,108860.0,108850.0,1.0130981]
[1756584182547,0.36870667,108860.0,108850.0,1.8442581]
[1756584183043,0.05844857,108860.0,108850.0,1.8441781]
[1756584183248,0.36870667,108860.0,108850.0,1.8441781]
[1756584183446,0.36870667,108860.0,108850.0,1.8441381]
[1756584187058,0.36870667,108860.0,108850.0,1.0130981]
[1756584187357,0.36870667,108860.0,108850.0,1.8441781]
[1756584189559,0.36870667,108860.0,108850.0,1.8440981]
[1756584195866,0.36870667,108860.0,108850.0,1.53384]
[1756584196163,0.36870667,108860.0,108850.0,1.8440981]
[1756584200065,0.05844857,108860.0,108850.0,1.8440981]
[1756584200269,0.36870667,108860.0,108850.0,1.8440981]
[1756584200968,0.36870667,108860.0,108850.0,1.4832981]
[1756584201169,0.36870667,108860.0,108850.0,1.8440981]
[1756584202673,0.05844857,108860.0,108850.0,1.8440981]
[1756584202873,0.36870667,108860.0,108850.0,1.8440981]
[1756584203773,0.36870667,108860.0,108850.0,1.4832981]
[1756584203974,0.36870667,108860.0,108850.0,1.8440981]
[1756584204874,0.41832987,108860.0,108850.0,1.8440981]
[1756584205069,0.36870667,108860.0,108850.0,1.8440981]
[1756584209374,0.05844857,108860.0,108850.0,1.8440981]
[1756584209575,0.36870667,108860.0,108850.0,1.8440981]
[1756584210281,0.41832987,108860.0,108850.0,1.8440981]
[1756584212284,0.10807177,108860.0,108850.0,1.8440981]
[1756584214981,0.07254177,108860.0,108850.0,1.8440981]
[1756584215380,0.0496232,108860.0,108850.0,1.8440981]
[1756584215784,0.0864732,108860.0,108850.0,1.8440981]
[1756584215981,0.10939177,108860.0,108850.0,1.8440981]
[1756584220587,0.05976857,108860.0,108850.0,1.8440981]
[1756584221378,0.37002667,108860.0,108850.0,1.8440981]
[1756584221579,0.41964987,108860.0,108850.0,1.8440981]
[1756584221885,0.10939177,108860.0,108850.0,1.8440981]
[1756584222085,0.05976857,108860.0,108850.0,1.8440981]
[1756584222286,0.10939177,108860.0,108850.0,1.8440981]
[1756584222681,0.02291857,108860.0,108850.0,1.8440981]
[1756584223187,0.41964987,108870.0,108850.0,1.8440981]
[1756584223387,0.55395987,108870.0,108860.0,0.3102581]
[1756584224090,0.24370177,108870.0,108860.0,0.3102581]
[1756584224290,0.55395987,108870.0,108860.0,0.3102581]
[1756584224602,0.24370177,108870.0,108860.0,0.3102581]
[1756584224888,0.55395987,108870.0,108860.0,0.3102581]
[1756584226192,0.55395987,108870.0,108860.0,1.1412581]
[1756584228286,0.55395987,108870.0,108850.0,0.62734]
[1756584228590,0.55395987,108870.0,108860.0,1.1412581]
[1756584228591,0.20685177,108870.0,108860.0,1.1412581]
[1756584228993,0.24370177,108870.0,108860.0,1.1412581]
[1756584229691,0.55395987,108870.0,108860.0,1.1412581]
[1756584232796,0.50433667,108870.0,108860.0,1.1412581]
[1756584234699,0.50633667,108870.0,108860.0,1.1412581]
[1756584234894,0.50933667,108870.0,108860.0,1.1412581]
[1756584235600,0.19907857,108870.0,108860.0,1.1412581]
[1756584235800,0.50933667,108870.0,108860.0,1.1412581]
[1756584239708,0.4864181,108870.0,108860.0,1.1412581]
[1756584240004,0.55903216,108870.0,108860.0,1.1412581]
[1756584240397,0.53604398,108870.0,108860.0,1.1412581]
[1756584240596,0.4864181,108870.0,108860.0,1.1412581]
[1756584240798,0.50940625,108870.0,108860.0,1.1412581]
[1756584244213,0.50940625,108870.0,108860.0,0.831]
[1756584244513,0.50940625,108870.0,108860.0,1.1412581]
[1756584245313,0.55903175,108870.0,108860.0,1.1412581]
[1756584250621,0.50940625,108870.0,108860.0,1.1412581]
[1756584254019,0.50940625,108870.0,108860.0,0.831]
[1756584254214,0.50940625,108870.0,108860.0,1.1412581]
[1756584255018,0.55903376,108870.0,108860.0,1.1412581]
[1756584255416,0.55903376,108870.0,108860.0,1.1412181]
[1756584260616,0.50940625,108870.0,108860.0,1.1412181]
[1756584265824,0.50940625,108870.0,108860.0,0.83096]
[1756584266024,0.50940625,108870.0,108860.0,1.1412181]
[1756584270527,0.55902929,108870.0,108860.0,1.1412181]
[1756584271031,0.55902929,108870.0,108860.0,0.3102581]
[1756584271328,0.55902929,108870.0,108860.0,1.1412181]
[1756584272328,0.5590293,108870.0,108860.0,1.1412181]
[1756584274732,0.50940625,108870.0,108860.0,1.1412181]
[1756584277738,0.50940625,108870.0,108850.0,0.95801624]
[1756584277938,0.73116004,108860.0,108850.0,1.28801624]
[1756584278237,0.77414819,108860.0,108850.0,0.87096]
[1756584278536,0.77414819,108860.0,108850.0,1.1812181]
[1756584279130,0.77614819,108860.0,108850.0,1.1812181]
[1756584279943,0.77614819,108860.0,108850.0,0.83096]
[1756584280137,1.13694819,108860.0,108850.0,4e-05]
[1756584280338,1.08732435,108860.0,108850.0,0.83096]
[1756584280539,1.33732435,108860.0,108850.0,4e-05]
[1756584280737,1.40342255,108860.0,108850.0,4e-05]
[1756584280933,1.40442255,108860.0,108850.0,4e-05]
[1756584282445,2.54564065,108860.0,108850.0,4e-05]
[1756584282834,2.23538255,108860.0,108850.0,4e-05]
[1756584283039,2.54564065,108860.0,108850.0,4e-05]
[1756584283238,2.23538255,108860.0,108850.0,4e-05]
[1756584284344,2.54564065,108860.0,108850.0,4e-05]
[1756584287948,2.54556221,108860.0,108850.0,4e-05]
[1756584289847,1.71460221,108860.0,108850.0,4e-05]
[1756584290151,2.54564221,108860.0,108850.0,4e-05]
[1756584290650,2.47954401,108860.0,108850.0,4e-05]
[1756584292953,1.64850401,108860.0,108850.0,4e-05]
[1756584293249,2.47954401,108860.0,108850.0,4e-05]
[1756584294651,2.54564221,108860.0,108850.0,4e-05]
[1756584296053,1.71460221,108860.0,108850.0,4e-05]
[1756584296253,2.54568221,108860.0,108850.0,4e-05]
[1756584299052,1.71460221,108860.0,108850.0,4e-05]
[1756584299352,2.29568221,108860.0,108850.0,4e-05]
[1756584300156,1.46460221,108860.0,108850.0,4e-05]
[1756584300550,1.08824591,108860.0,108850.0,4e-05]
[1756584300960,1.91932591,108860.0,108850.0,4e-05]
[1756584301454,1.08824591,108860.0,108850.0,4e-05]
[1756584304859,1.91932591,108860.0,108850.0,4e-05]
[1756584306853,0.46772971,108860.0,108850.0,0.3102981]
[1756584307060,0.41718781,108860.0,108850.0,0.3102981]
[1756584308660,0.41718781,108860.0,108850.0,0.5602981]
[1756584308661,0.17290627,108860.0,108850.0,0.5602981]
[1756584308861,0.17290627,108860.0,108850.0,0.9210981]
[1756584309164,0.41718781,108860.0,108850.0,0.9210981]
[1756584309363,0.48316437,108860.0,108850.0,0.9210981]
[1756584309562,0.41718781,108860.0,108850.0,0.9210981]
[1756584310064,0.41718781,108860.0,108850.0,0.61084]
[1756584310263,1.13781031,108860.0,108850.0,4e-05]
[1756584310462,1.13781031,108860.0,108830.0,0.3608]
[1756584310463,1.39850401,108860.0,108830.0,0.3608]
[1756584310659,0.058,108830.0,108820.0,1.5971476]
[1756584310859,0.39116781,108830.0,108820.0,2.2771476]
[1756584311259,0.39116781,108830.0,108820.0,1.4458676]
[1756584311563,0.39116781,108830.0,108820.0,2.2773076]
[1756584311770,0.39016781,108830.0,108820.0,2.2773076]
[1756584312567,0.39016781,108830.0,108820.0,2.2793076]
[1756584312768,0.38916781,108830.0,108820.0,2.2793076]
[1756584313371,0.38916781,108830.0,108820.0,2.2813076]
[1756584313966,0.07890971,108830.0,108820.0,2.2813076]
[1756584314163,0.04511971,108830.0,108820.0,2.5915657]
[1756584315869,0.04511971,108830.0,108820.0,1.7601257]
[1756584316066,0.07890971,108830.0,108820.0,2.5918857]
[1756584316773,0.07890971,108830.0,108820.0,2.8583857]
[1756584316966,0.38916781,108830.0,108820.0,2.8583857]
[1756584320572,0.35537781,108830.0,108820.0,2.8583857]
[1756584321671,0.04511971,108830.0,108820.0,2.8583857]
[1756584321982,0.04511971,108830.0,108820.0,2.8589857]
[1756584322476,0.04511971,108830.0,108820.0,2.0266257]
[1756584322776,0.04511971,108830.0,108820.0,2.8589857]
[1756584322974,0.04511971,108830.0,108820.0,2.2384695]
[1756584323175,0.04511971,108830.0,108820.0,2.8589857]
[1756584323778,0.04511971,108830.0,108820.0,2.2384695]
[1756584323977,0.04511971,108830.0,108820.0,2.8589857]
[1756584327577,0.04511971,108830.0,108820.0,2.0266257]
[1756584327970,0.04511971,108830.0,108820.0,2.8589057]
[1756584332870,0.04511971,108830.0,108820.0,2.8587457]
[1756584341087,0.02290971,108830.0,108820.0,2.8587457]
[1756584341292,0.04957339,108840.0,108820.0,2.8587457]
[1756584341488,0.13290971,108840.0,108830.0,0.6710581]
[1756584341790,0.13290971,108840.0,108830.0,1.0310581]
[1756584343287,0.13290971,108840.0,108830.0,0.6920581]
[1756584343996,0.13290971,108840.0,108830.0,0.6930581]
[1756584344293,0.15661971,108840.0,108830.0,0.6730581]
[1756584344499,0.15661971,108840.0,108830.0,0.6930581]
[1756584344892,0.15661971,108840.0,108830.0,0.6730581]
[1756584345093,0.15661971,108840.0,108830.0,0.6930581]
[1756584346192,0.15661971,108840.0,108830.0,1.0430581]
[1756584349201,0.02290971,108840.0,108830.0,1.3533162]
[1756584349395,0.36884781,108850.0,108830.0,1.0430581]
[1756584349592,0.15661971,108850.0,108840.0,1.8133162]
[1756584349896,0.13290971,108850.0,108840.0,1.2128]
[1756584350098,0.13290971,108850.0,108840.0,2.1333162]
[1756584350494,0.13290971,108850.0,108840.0,2.15411219]
[1756584350701,0.13390971,108850.0,108840.0,2.20411219]
[1756584351688,0.13390971,108850.0,108840.0,1.85411219]
[1756584352192,0.13390971,108850.0,108840.0,2.12061219]
[1756584362008,0.13390971,108850.0,108840.0,2.44061219]
[1756584363707,0.13390971,108850.0,108840.0,1.60861219]
[1756584363909,0.13390971,108850.0,108840.0,2.44053219]
[1756584365906,0.13390971,108850.0,108840.0,1.60861219]
[1756584366106,0.13390971,108850.0,108840.0,2.44045219]
[1756584370812,0.13390971,108850.0,108840.0,1.60861219]
[1756584371014,0.13390971,108850.0,108840.0,2.44033219]
[1756584372312,0.13390971,108850.0,108840.0,1.60861219]
[1756584372610,0.13390971,108850.0,108840.0,2.44025219]
[1756584374317,0.13390971,108850.0,108840.0,1.60861219]
[1756584374518,0.13390971,108850.0,108840.0,2.44029219]
[1756584375121,0.13390971,108850.0,108840.0,2.80109219]
[1756584375923,0.13390971,108850.0,108840.0,2.80105219]
[1756584376117,0.16951971,108850.0,108840.0,2.46105219]
[1756584376422,0.16951971,108850.0,108840.0,2.81105219]
[1756584376923,0.16951971,108850.0,108840.0,1.97941219]
[1756584377119,0.16951971,108850.0,108840.0,2.81113219]
[1756584382824,0.13390971,108850.0,108840.0,2.81113219]
[1756584383225,0.16951971,108850.0,108840.0,2.81113219]
[1756584387127,0.13390971,108850.0,108840.0,2.81113219]
[1756584392331,0.13390971,108850.0,108840.0,2.48113219]
[1756584392534,0.13390971,108850.0,108840.0,2.80113219]
[1756584400545,0.1834831,108850.0,108840.0,2.80113219]
[1756584401049,0.13390971,108850.0,108840.0,2.80113219]
[1756584401848,0.13390971,108850.0,108840.0,1.96941219]
[1756584402047,0.13390971,108850.0,108840.0,2.80053219]
[1756584402651,0.17083971,108850.0,108840.0,2.80053219]
[1756584403055,0.13390971,108850.0,108840.0,2.80053219]
[1756584414760,0.17083971,108850.0,108840.0,2.80053219]
[1756584415161,0.13390971,108850.0,108840.0,2.80053219]
[1756584417456,0.13390971,108850.0,108840.0,1.96941219]
[1756584417762,0.13390971,108850.0,108840.0,2.80053219]
[1756584417958,0.13390971,108850.0,108840.0,1.00889599]
[1756584418157,0.48109781,108850.0,108840.0,1.00889599]
[1756584418357,0.48109781,108850.0,108840.0,2.15023409]
[1756584418765,0.48109781,108850.0,108840.0,2.46049219]
[1756584419761,0.48109781,108850.0,108840.0,2.09969219]
[1756584420065,0.17083971,108850.0,108840.0,2.09969219]
[1756584420267,0.48109781,108850.0,108840.0,2.09969219]
[1756584420966,0.48109781,108850.0,108840.0,1.47917599]
[1756584421166,0.48109781,108850.0,108840.0,2.09969219]
[1756584424365,0.50535781,108850.0,108840.0,0.95835409]
[1756584424567,0.75535781,108850.0,108840.0,0.6273]
[1756584424768,0.8049312,108850.0,108840.0,1.45838]
[1756584425373,0.8049312,108850.0,108840.0,1.7686381]
[1756584428268,0.4946731,108850.0,108840.0,1.7686381]
[1756584428473,0.8049312,108850.0,108840.0,2.0788962]
[1756584429272,0.8049312,108850.0,108840.0,1.8123962]
[1756584429468,0.4946731,108850.0,108840.0,1.8123962]
[1756584429674,0.75535781,108850.0,108840.0,1.8123962]
[1756584432774,0.40816971,108850.0,108840.0,1.8123962]
[1756584432981,0.71842781,108850.0,108840.0,1.8123962]
[1756584433382,0.40816971,108850.0,108840.0,1.8123962]
[1756584433979,0.44553971,108850.0,108840.0,1.8123962]
[1756584436285,0.75579781,108850.0,108840.0,1.8123962]
[1756584438081,0.75579781,108850.0,108840.0,1.8323962]
[1756584438681,0.15816971,108850.0,108840.0,2.1523962]
[1756584438888,0.13390971,108850.0,108840.0,2.1523962]
[1756584439078,0.17127971,108850.0,108840.0,2.1429562]
[1756584440586,0.2208531,108850.0,108840.0,2.1429562]
[1756584441087,0.1834831,108850.0,108840.0,2.1429562]
[1756584441286,0.13390971,108850.0,108840.0,2.4094562]
[1756584448596,0.13390971,108850.0,108840.0,2.0486562]
[1756584448898,0.13390971,108850.0,108840.0,2.7702562]
[1756584450592,0.13390971,108850.0,108840.0,2.0486562]
[1756584450796,0.13390971,108850.0,108840.0,2.7702562]
[1756584452196,0.111,108850.0,108840.0,2.7702562]
[1756584452395,0.13366807,108850.0,108840.0,2.7702562]
[1756584457499,0.13366807,108850.0,108840.0,1.9286162]
[1756584457694,0.17011807,108850.0,108840.0,2.7901362]
[1756584459200,0.17011807,108850.0,108840.0,1.9586162]
[1756584459400,0.17011807,108850.0,108840.0,2.7900562]
[1756584459595,0.14745,108850.0,108840.0,2.7900562]
[1756584459802,0.17012278,108850.0,108840.0,2.7900562]
[1756584460003,0.17012278,108850.0,108840.0,2.4400562]
[1756584460203,0.17012278,108850.0,108840.0,1.6086162]
[1756584460204,0.13367278,108850.0,108840.0,1.6086162]
[1756584460502,0.13367278,108850.0,108840.0,2.4400962]
[1756584460702,0.13367278,108850.0,108840.0,2.8200962]
[1756584466805,0.13367278,108850.0,108840.0,2.4400962]
[1756584467011,0.13367278,108850.0,108840.0,2.4600962]
[1756584468613,0.13367278,108850.0,108840.0,2.8100962]
[1756584474613,0.111,108850.0,108840.0,2.8100962]
[1756584474823,0.13370087,108850.0,108840.0,2.8100962]
[1756584477616,0.13370087,108850.0,108840.0,1.9786162]
[1756584477825,0.13370087,108850.0,108840.0,1.83958]
[1756584478115,0.13370087,108850.0,108840.0,2.4600962]
[1756584478320,0.17015087,108850.0,108840.0,2.4600962]
[1756584480018,0.13370087,108850.0,108840.0,2.4600962]
[1756584492125,0.13370087,108850.0,108840.0,1.6286162]
[1756584492429,0.13370087,108850.0,108840.0,2.4598962]
[1756584492927,0.16961087,108850.0,108840.0,2.4598962]
[1756584495431,0.13370087,108850.0,108840.0,2.4598962]
[1756584498033,0.13370087,108850.0,108840.0,1.7382962]
[1756584498235,0.13370087,108850.0,108840.0,2.4598962]
[1756584506134,0.44395897,108850.0,108840.0,2.4598962]
[1756584507638,0.50351897,108850.0,108840.0,1.8193]
[1756584508038,0.50351897,108850.0,108840.0,2.1295581]
[1756584508237,0.50351897,108850.0,108840.0,0.9881]
[1756584508435,0.50351897,108850.0,108840.0,0.6273]
[1756584508741,0.50351897,108850.0,108840.0,1.45874]
[1756584509040,0.19326087,108850.0,108840.0,1.7689981]
[1756584509239,0.50351897,108850.0,108840.0,1.7689981]
[1756584509539,0.50351897,108850.0,108840.0,1.5024981]
[1756584512238,0.50351897,108850.0,108840.0,0.3608]
[1756584512444,0.50351897,108850.0,108840.0,1.19276]
[1756584514147,0.81377707,108850.0,108840.0,0.3608]
[1756584514348,0.81377707,108850.0,108840.0,1.19272]
[1756584514349,1.11335046,108850.0,108840.0,1.19272]
[1756584514846,0.80309236,108850.0,108840.0,1.19272]
[1756584517558,0.05792,108840.0,108830.0,0.66140797]
[1756584517759,0.72800959,108840.0,108830.0,1.11278]
[1756584517956,0.75071046,108840.0,108830.0,1.11278]
[1756584518262,0.13019426,108840.0,108830.0,1.11278]
[1756584518562,0.75071046,108840.0,108830.0,1.4230381]
[1756584519160,0.75071046,108840.0,108830.0,1.4240381]
[1756584519660,0.13019426,108840.0,108830.0,1.4240381]
[1756584519859,0.75071046,108840.0,108830.0,1.4240381]
[1756584521155,0.75071046,108840.0,108830.0,1.11378]
[1756584521358,0.75071046,108840.0,108830.0,0.84728]
[1756584522460,0.75071046,108840.0,108830.0,0.015]
[1756584522660,0.75071046,108840.0,108830.0,0.84772]
[1756584528160,0.75071046,108840.0,108830.0,0.8476]
[1756584528161,0.81113707,108840.0,108830.0,0.8476]
[1756584529067,1.17193707,108840.0,108830.0,0.8476]
[1756584531869,1.22151046,108840.0,108830.0,0.8476]
[1756584532569,1.22151046,108840.0,108830.0,0.86793052]
[1756584532964,1.22151046,108840.0,108830.0,0.03533052]
[1756584533171,1.22151046,108840.0,108830.0,0.84808]
[1756584539877,1.22151046,108840.0,108830.0,0.83408]
[1756584540179,1.47151046,108840.0,108830.0,0.83408]
[1756584540778,1.42193707,108840.0,108830.0,0.83408]
[1756584548088,1.42193707,108840.0,108830.0,0.001]
[1756584548278,1.42193707,108840.0,108830.0,0.83376]
[1756584554989,1.48791363,108840.0,108830.0,0.83376]
[1756584566998,0.86739743,108840.0,108830.0,0.83376]
[1756584567598,1.48791363,108840.0,108830.0,0.83376]
[1756584570102,1.48791363,108840.0,108830.0,0.001]
[1756584570299,1.42193707,108840.0,108830.0,0.83348]
[1756584570803,1.48813176,108840.0,108830.0,0.83348]
[1756584572003,0.86761556,108840.0,108830.0,0.83348]
[1756584572203,1.12733176,108840.0,108830.0,0.83348]
[1756584574305,1.12733176,108840.0,108830.0,0.85355772]
[1756584574500,1.06113707,108840.0,108830.0,0.85355772]
[1756584580311,1.06113707,108840.0,108830.0,0.001]
[1756584580616,1.42193707,108840.0,108830.0,0.83336]
[1756584581216,1.3992362,108840.0,108830.0,0.001]
[1756584581516,1.4219689,108840.0,108830.0,0.00559]
[1756584584417,1.48816359,108840.0,108830.0,0.00559]
[1756584590024,1.48816359,108840.0,108830.0,0.02645192]
[1756584590315,1.17790549,108840.0,108830.0,0.02645192]
[1756584590522,1.48816359,108840.0,108830.0,0.02645192]
[1756584599234,1.23816359,108840.0,108830.0,0.02645192]
[1756584608933,0.61764739,108840.0,108830.0,0.02645192]
[1756584609134,1.23816359,108840.0,108830.0,0.02645192]
[1756584609534,1.1719689,108840.0,108830.0,0.02645192]
[1756584610835,1.23816359,108840.0,108830.0,0.02645192]
[1756584612940,0.87736359,108840.0,108830.0,0.02645192]
[1756584618242,0.87736359,108840.0,108830.0,0.85913192]
[1756584619246,0.87736359,108840.0,108830.0,0.02645192]
[1756584619842,1.23816359,108840.0,108830.0,0.02645192]
[1756584620545,1.1719689,108840.0,108830.0,0.02645192]
[1756584621653,1.1719689,108840.0,108830.0,0.00559]
[1756584623047,1.1759689,108840.0,108830.0,0.00459]
[1756584623345,1.1779689,108840.0,108830.0,0.00459]
[1756584623545,1.1739689,108840.0,108830.0,0.00459]
[1756584623748,1.1779689,108840.0,108830.0,0.00459]
[1756584630552,1.24416359,108840.0,108830.0,0.00459]
[1756584631251,0.05893,108830.0,108810.0,0.3608]
[1756584631439,0.67015282,108820.0,108810.0,0.34]
[1756584631645,0.67015282,108820.0,108800.0,1.79278006]
[1756584631646,1.1370089,108820.0,108800.0,1.79278006]
[1756584631847,0.35989931,108810.0,108800.0,2.15278006]
[1756584632044,0.42797362,108810.0,108800.0,1.91414545]
[1756584632249,0.09103431,108810.0,108800.0,0.72078545]
[1756584632551,1.23199172,108810.0,108800.0,0.28696196]
[1756584632752,0.61147552,108810.0,108800.0,0.28796196]
[1756584632947,1.23199172,108810.0,108800.0,0.28796196]
[1756584633946,1.23199172,108810.0,108800.0,1.12488196]
[1756584634550,1.23299172,108810.0,108800.0,1.12488196]
[1756584635049,1.23499172,108810.0,108800.0,1.12388196]
[1756584637054,1.23499172,108810.0,108800.0,0.85738196]
[1756584640460,1.18535051,108810.0,108800.0,0.85738196]
[1756584640760,1.23499172,108810.0,108800.0,0.85738196]
[1756584640948,1.18535051,108810.0,108800.0,0.85738196]
[1756584642054,1.18535051,108810.0,108800.0,0.85722196]
[1756584642858,1.23499172,108810.0,108800.0,0.85722196]
[1756584643255,1.18535051,108810.0,108800.0,0.85722196]
[1756584644664,1.18535051,108810.0,108800.0,0.88034196]
[1756584645462,1.18535051,108810.0,108800.0,0.89635196]
[1756584645659,1.18535051,108810.0,108800.0,0.04358196]
[1756584645961,1.18535051,108810.0,108800.0,0.88022196]
[1756584646861,1.18535051,108810.0,108800.0,0.89643196]
[1756584647665,1.18535051,108810.0,108800.0,0.05979196]
[1756584647966,1.18535051,108810.0,108800.0,0.89643196]
[1756584649257,0.20403431,108810.0,108800.0,1.20669006]
[1756584649458,0.51429241,108810.0,108800.0,1.20669006]
[1756584650965,0.56393362,108810.0,108800.0,0.89643196]
[1756584653957,0.25367552,108810.0,108800.0,0.89643196]
[1756584654161,0.56393362,108810.0,108800.0,0.89643196]
[1756584654664,0.25367552,108810.0,108800.0,0.89643196]
[1756584654968,0.56393362,108810.0,108800.0,0.89643196]
[1756584656169,0.56393362,108810.0,108800.0,0.87601]
[1756584657869,0.25367552,108810.0,108800.0,0.87601]
[1756584658169,0.56393362,108810.0,108800.0,0.87601]
[1756584658366,0.51429241,108810.0,108800.0,0.87601]
[1756584659269,0.51429241,108810.0,108800.0,1.23681]
[1756584660370,0.22488739,108810.0,108800.0,1.5470681]
[1756584660671,0.4689508,108810.0,108800.0,1.5470681]
[1756584660970,0.5185196,108810.0,108800.0,1.5470681]
[1756584661271,0.5049208,108810.0,108800.0,1.23681]
[1756584661474,0.5049208,108810.0,108800.0,1.23905]
[1756584661771,0.51427146,108810.0,108800.0,1.23905]
[1756584662969,0.51427146,108810.0,108800.0,1.5493081]
[1756584663971,0.51427146,108810.0,108800.0,1.23905]
[1756584665171,0.5049208,108810.0,108800.0,1.23905]
[1756584665567,0.5049208,108810.0,108800.0,1.5493081]
[1756584665872,0.51392039,108810.0,108800.0,1.5493081]
[1756584666378,0.5049208,108810.0,108800.0,1.5493081]
[1756584667574,0.5049208,108810.0,108800.0,0.7104281]
[1756584667766,0.5049208,108810.0,108800.0,1.23905]
[1756584668473,0.5049208,108810.0,108800.0,1.5493081]
[1756584668771,0.55453943,108810.0,108800.0,1.5493081]
[1756584672682,0.55453943,108810.0,108800.0,0.7104281]
[1756584672874,0.55453943,108810.0,108800.0,1.5489081]
[1756584675776,0.55453943,108810.0,108800.0,1.5485481]
[1756584676685,0.55453943,108810.0,108800.0,1.5531381]
[1756584677485,0.55453943,108810.0,108800.0,1.24288]
[1756584677782,0.24428133,108810.0,108800.0,1.5531381]
[1756584678084,0.55453943,108810.0,108800.0,1.5531381]
[1756584679182,0.55453943,108810.0,108800.0,1.5529781]
[1756584679383,0.5049208,108810.0,108800.0,1.5529781]
[1756584680488,0.5049208,108810.0,108800.0,0.7150181]
[1756584680681,0.5049208,108810.0,108800.0,1.5528181]
[1756584680986,0.5049208,108810.0,108800.0,1.5526981]
[1756584681180,0.5049208,108810.0,108800.0,0.7150181]
[1756584681391,0.5049208,108810.0,108800.0,1.5526981]
[1756584681688,0.5049208,108810.0,108800.0,1.24244]
[1756584682386,0.1946627,108810.0,108800.0,1.24244]
[1756584682685,0.5049208,108810.0,108800.0,1.24244]
[1756584684087,0.1946627,108810.0,108800.0,1.24244]
[1756584684381,0.5049208,108810.0,108800.0,1.24244]
[1756584684587,0.5049208,108810.0,108800.0,1.5526981]
[1756584685985,0.5049208,108810.0,108800.0,1.5523381]
[1756584686490,0.5049208,108810.0,108800.0,1.24208]
[1756584686689,0.5049208,108810.0,108800.0,1.5523381]
[1756584688090,0.5049208,108810.0,108800.0,1.5723381]
[1756584689193,0.5049208,108810.0,108800.0,0.7350181]
[1756584689394,0.5049208,108810.0,108800.0,1.5721781]
[1756584693396,0.1946627,108810.0,108800.0,1.5721781]
[1756584693594,0.5049208,108810.0,108800.0,1.5721781]
[1756584695197,0.5049208,108810.0,108800.0,0.42476]
[1756584695498,0.5049208,108810.0,108800.0,1.2414]
[1756584695898,0.5049208,108810.0,108800.0,1.24192]
[1756584696099,0.5049208,108810.0,108800.0,0.88112]
[1756584696492,0.5049208,108810.0,108800.0,0.88124]
[1756584696697,0.8151789,108810.0,108800.0,0.88124]
[1756584696997,0.8151789,108810.0,108800.0,0.86503]
[1756584697195,0.8151789,108810.0,108800.0,0.02775]
[1756584697396,0.88137359,108810.0,108800.0,0.86579]
[1756584697596,0.88137359,108810.0,108800.0,0.87741]
[1756584697804,0.26085739,108810.0,108800.0,0.87741]
[1756584697996,0.88137359,108810.0,108800.0,0.87741]
[1756584698604,0.88137359,108810.0,108800.0,0.882]
[1756584699603,0.46111549,108810.0,108800.0,0.882]
[1756584699802,0.3949208,108810.0,108800.0,0.882]
[1756584700301,0.3949208,108810.0,108800.0,0.902]
[1756584701004,0.46111549,108810.0,108800.0,0.902]
[1756584701906,0.46111549,108810.0,108800.0,1.102]
[1756584705308,0.3949208,108810.0,108800.0,1.102]
[1756584713817,0.3949208,108810.0,108800.0,0.26396]
[1756584714016,1.0659789,108810.0,108800.0,0.24775]
[1756584714220,1.1759789,108810.0,108800.0,0.02775]